[Event "Open Nuevo Centro. Jornada 1"]
[Site "Chess.com"]
[Date "2020.06.19"]
[Round "5"]
[White "G�mez Alonso, �scar"]
[Black "Blanco Solaz, Ram�n"]
[Result "0-1"]
[WhiteElo "1759"]
[BlackElo "1985"]
[TimeControl "180+2"]
[EndTime "11:26:34 PDT"]
[Termination "Victoria de Rbs77 por abandono"]

1. d4 {[%clk 0:03:01.9]} 1... Nf6 {[%clk 0:02:59.2]} 2. c4 {[%clk 0:03:02.4]}
2... c5 {[%clk 0:03:00.2]} 3. d5 {[%clk 0:03:01.5]} 3... e6 {[%clk 0:03:01.5]}
4. Nc3 {[%clk 0:02:50.5]} 4... exd5 {[%clk 0:03:02.5]} 5. Nxd5 {[%clk
0:02:51.6]} 5... d6 {[%clk 0:02:47.5]} 6. Nf3 {[%clk 0:02:35.1]} 6... Nc6 {[%clk
0:02:47.4]} 7. e3 {[%clk 0:02:34.8]} 7... Be7 {[%clk 0:02:45]} 8. Nxe7 {[%clk
0:02:34.3]} 8... Qxe7 {[%clk 0:02:28.4]} 9. Bd2 {[%clk 0:02:34.8]} 9... O-O
{[%clk 0:02:21.9]} 10. Be2 {[%clk 0:02:35.5]} 10... Bf5 {[%clk 0:02:21.3]} 11.
O-O {[%clk 0:02:34.6]} 11... Ne4 {[%clk 0:02:20.6]} 12. Bc1 {[%clk 0:02:31.7]}
12... Rad8 {[%clk 0:02:17.4]} 13. Nd2 {[%clk 0:02:28.9]} 13... Nf6 {[%clk
0:02:07.5]} 14. a3 {[%clk 0:02:24.3]} 14... d5 {[%clk 0:02:07.8]} 15. Qa4 {[%clk
0:02:22]} 15... d4 {[%clk 0:02:03]} 16. exd4 {[%clk 0:02:11.5]} 16... Qxe2
{[%clk 0:01:44.9]} 17. d5 {[%clk 0:02:04.6]} 17... Nd4 {[%clk 0:01:43]} 18. Nb3
{[%clk 0:02:01.7]} 18... Nxb3 {[%clk 0:01:31.2]} 19. Qxb3 {[%clk 0:02:02.3]}
19... b6 {[%clk 0:01:31.9]} 20. Be3 {[%clk 0:02:00.3]} 20... Qc2 {[%clk
0:01:27.9]} 21. Qb5 {[%clk 0:02:00.3]} 21... Qe4 {[%clk 0:01:22]} 22. Bg5 {[%clk
0:01:57.9]} 22... Rd6 {[%clk 0:01:19.3]} 23. a4 {[%clk 0:01:57]} 23... Qe8
{[%clk 0:01:18.8]} 24. Qb3 {[%clk 0:01:56.3]} 24... Ne4 {[%clk 0:01:15.1]} 25.
Be3 {[%clk 0:01:55.4]} 25... Bd7 {[%clk 0:01:13.2]} 26. a5 {[%clk 0:01:55.1]}
26... Rg6 {[%clk 0:01:11.6]} 27. f3 {[%clk 0:01:36.6]} 27... Nd6 {[%clk
0:01:00.7]} 28. Bf4 {[%clk 0:01:30.2]} 28... Nf5 {[%clk 0:01:01]} 29. axb6
{[%clk 0:01:25.6]} 29... axb6 {[%clk 0:01:01.8]} 30. Rfe1 {[%clk 0:01:16]} 30...
Qc8 {[%clk 0:01:03]} 31. Ra7 {[%clk 0:01:14.1]} 31... Nd4 {[%clk 0:01:03.2]} 32.
Qa2 {[%clk 0:01:00.8]} 32... Nxf3+ {[%clk 0:01:03.8]} 33. Kf2 {[%clk 0:01:00.4]}
33... Nxe1 {[%clk 0:01:05.1]} 34. Kxe1 {[%clk 0:00:55.3]} 34... Rxg2 {[%clk
0:01:06.5]} 35. Rc7 {[%clk 0:00:44.4]} 35... Qe8+ {[%clk 0:01:06.3]} 36. Kf1
{[%clk 0:00:37.5]} 36... Bh3 {[%clk 0:01:07.3]} 37. b3 {[%clk 0:00:16.7]} 37...
Rxa2+ {[%clk 0:01:06.9]} 0

[Event "Open Nuevo Centro. Jornada 1"]
[Site "Chess.com"]
[Date "2020.06.19"]
[Round "5"]
[White "Elenkov Olmo, Ivan"]
[Black "Fern�ndez Mart�n, Berta"]
[Result "1-0"]
[WhiteElo "804"]
[BlackElo "756"]
[TimeControl "180+2"]
[EndTime "11:27:15 PDT"]
[Termination "Victoria de IVANELEN por tiempo"]

1. e4 {[%clk 0:03:01.9]} 1... e5 {[%clk 0:02:58]} 2. Nf3 {[%clk 0:02:58.8]} 2...
Nc6 {[%clk 0:02:57.1]} 3. Bc4 {[%clk 0:02:58.2]} 3... Nf6 {[%clk 0:02:51]} 4.
Ng5 {[%clk 0:02:55.1]} 4... d5 {[%clk 0:02:46.1]} 5. Bxd5 {[%clk 0:02:53.8]}
5... Nxd5 {[%clk 0:02:46]} 6. exd5 {[%clk 0:02:53.8]} 6... Qxg5 {[%clk
0:02:45.7]} 7. dxc6 {[%clk 0:02:53.1]} 7... Qxg2 {[%clk 0:02:46]} 8. Rf1 {[%clk
0:02:51]} 8... Qxc6 {[%clk 0:02:45.6]} 9. Nc3 {[%clk 0:02:47.1]} 9... Bf5 {[%clk
0:02:37.3]} 10. Qe2 {[%clk 0:02:40.1]} 10... Bd6 {[%clk 0:02:35.3]} 11. d3
{[%clk 0:02:22.6]} 11... O-O-O {[%clk 0:02:29.6]} 12. Be3 {[%clk 0:01:47.2]}
12... Rhe8 {[%clk 0:02:16.1]} 13. O-O-O {[%clk 0:01:38.8]} 13... a6 {[%clk
0:02:11.7]} 14. Rg1 {[%clk 0:01:21]} 14... Bg6 {[%clk 0:02:03.9]} 15. h3 {[%clk
0:00:47.3]} 15... f6 {[%clk 0:01:58.5]} 16. h4 {[%clk 0:00:38.2]} 16... Bb4
{[%clk 0:01:48.5]} 17. h5 {[%clk 0:00:35]} 17... Bxc3 {[%clk 0:01:28.7]} 18.
hxg6 {[%clk 0:00:26.6]} 18... Bd4 {[%clk 0:01:18.8]} 19. Bxd4 {[%clk 0:00:24.3]}
19... Rxd4 {[%clk 0:01:17.1]} 20. gxh7 {[%clk 0:00:23.3]} 20... Qa4 {[%clk
0:01:16.2]} 21. Rh1 {[%clk 0:00:20.6]} 21... Qxa2 {[%clk 0:01:11.3]} 22. h8=Q
{[%clk 0:00:18.5]} 22... Qa1+ {[%clk 0:01:11.4]} 23. Kd2 {[%clk 0:00:18.7]}
23... Qa5+ {[%clk 0:01:12.9]} 24. Ke3 {[%clk 0:00:18]} 24... Rxh8 {[%clk
0:01:08.3]} 25. Rxh8+ {[%clk 0:00:15.4]} 25... Kd7 {[%clk 0:01:10.2]} 26. Qh5
{[%clk 0:00:09.8]} 26... Qc5 {[%clk 0:00:25.7]} 27. Qe8+ {[%clk 0:00:09.5]}
27... Kd6 {[%clk 0:00:18.9]} 28. Qd8+ {[%clk 0:00:09.2]} 28... Kc6 {[%clk
0:00:19.4]} 29. Qe8+ {[%clk 0:00:09.1]} 29... Kb6 {[%clk 0:00:11.9]} 30. Qg6
{[%clk 0:00:06.9]} 30... Qxc2 {[%clk 0:00:03.4]} 31. Qxg7 {[%clk 0:00:05.2]} 1

[Event "Open Nuevo Centro. Jornada 1"]
[Site "Chess.com"]
[Date "2020.06.19"]
[Round "5"]
[White "Gerona Maura, Jesus"]
[Black "Montesinos Diaz, Luis"]
[Result "0-1"]
[WhiteElo "1529"]
[BlackElo "1910"]
[TimeControl "180+2"]
[EndTime "11:27:22 PDT"]
[Termination "Victoria de Gwiso_06 por jaque mate"]

1. e4 {[%clk 0:03:01.9]} 1... c6 {[%clk 0:02:57.3]} 2. Nf3 {[%clk 0:03:02.1]}
2... d5 {[%clk 0:02:55.3]} 3. Nc3 {[%clk 0:03:03.1]} 3... Bg4 {[%clk 0:02:52.8]}
4. d4 {[%clk 0:02:57.9]} 4... e6 {[%clk 0:02:49.3]} 5. e5 {[%clk 0:02:57.2]}
5... c5 {[%clk 0:02:48.3]} 6. h3 {[%clk 0:02:57.2]} 6... Bxf3 {[%clk 0:02:47]}
7. gxf3 {[%clk 0:02:57.9]} 7... Nc6 {[%clk 0:02:47.2]} 8. dxc5 {[%clk
0:02:57.5]} 8... Bxc5 {[%clk 0:02:46.2]} 9. Bb5 {[%clk 0:02:55]} 9... Ne7 {[%clk
0:02:40.8]} 10. Qe2 {[%clk 0:02:53.9]} 10... a6 {[%clk 0:02:38.9]} 11. Bd3
{[%clk 0:02:49.9]} 11... Nd4 {[%clk 0:02:35.1]} 12. Qd1 {[%clk 0:02:42.1]} 12...
b5 {[%clk 0:02:24.1]} 13. Be3 {[%clk 0:02:34.5]} 13... Qb6 {[%clk 0:02:21.9]}
14. Bxd4 {[%clk 0:02:10.5]} 14... Bxd4 {[%clk 0:02:22.8]} 15. Qe2 {[%clk
0:02:06.1]} 15... Nc6 {[%clk 0:02:18.5]} 16. O-O-O {[%clk 0:01:54.1]} 16... Bxf2
{[%clk 0:01:50.7]} 17. Nxd5 {[%clk 0:01:51.7]} 17... exd5 {[%clk 0:01:49.7]} 18.
e6 {[%clk 0:01:52.5]} 18... Qe3+ {[%clk 0:01:49.5]} 19. Kb1 {[%clk 0:01:45.1]}
19... Qxe2 {[%clk 0:01:48.2]} 20. exf7+ {[%clk 0:01:45.9]} 20... Kxf7 {[%clk
0:01:49.2]} 21. Bxe2 {[%clk 0:01:45.5]} 21... d4 {[%clk 0:01:49.8]} 22. Rhf1
{[%clk 0:01:39.8]} 22... Be3 {[%clk 0:01:50.3]} 23. f4 {[%clk 0:01:39.6]} 23...
Rhe8 {[%clk 0:01:50.2]} 24. Bh5+ {[%clk 0:01:36.4]} 24... g6 {[%clk 0:01:50.3]}
25. Bf3 {[%clk 0:01:37.3]} 25... Rac8 {[%clk 0:01:47.3]} 26. Bd5+ {[%clk
0:01:37.6]} 26... Kg7 {[%clk 0:01:47.3]} 27. f5 {[%clk 0:01:37.1]} 27... Nb4
{[%clk 0:01:46.3]} 28. f6+ {[%clk 0:01:36.2]} 28... Kf8 {[%clk 0:01:45]} 29. Bb3
{[%clk 0:01:29.4]} 29... a5 {[%clk 0:01:37.9]} 30. a3 {[%clk 0:01:26.7]} 30...
Nc6 {[%clk 0:01:30.5]} 31. h4 {[%clk 0:01:22.4]} 31... a4 {[%clk 0:01:30.7]} 32.
Bd5 {[%clk 0:01:20.1]} 32... b4 {[%clk 0:01:23.7]} 33. axb4 {[%clk 0:01:09.8]}
33... Nxb4 {[%clk 0:01:21.8]} 34. Bb7 {[%clk 0:01:07.9]} 34... Rxc2 {[%clk
0:01:14]} 35. h5 {[%clk 0:01:04]} 35... g5 {[%clk 0:01:13.2]} 36. f7 {[%clk
0:00:57.9]} 36... Re7 {[%clk 0:01:12.1]} 37. Ba8 {[%clk 0:00:35.2]} 37... Rxf7
{[%clk 0:01:10.3]} 38. Rfe1 {[%clk 0:00:34.2]} 38... Rff2 {[%clk 0:01:07.9]} 39.
Rf1 {[%clk 0:00:33.4]} 39... Rxb2+ {[%clk 0:01:07.1]} 40. Ka1 {[%clk 0:00:33.6]}
40... a3 {[%clk 0:00:57.4]} 41. Rxf2+ {[%clk 0:00:32.9]} 41... Rxf2 {[%clk
0:00:59.3]} 42. h6 {[%clk 0:00:24.8]} 42... Rc2 {[%clk 0:00:54.9]} 43. Rb1
{[%clk 0:00:24.5]} 43... Bd2 {[%clk 0:00:47.5]} 44. Rf1+ {[%clk 0:00:23.1]}
44... Ke7 {[%clk 0:00:47.2]} 45. Be4 {[%clk 0:00:18.9]} 45... Bc3+ {[%clk
0:00:47.4]} 46. Kb1 {[%clk 0:00:17.4]} 46... a2# {[%clk 0:00:48.3]} 0

[Event "Open Nuevo Centro. Jornada 1"]
[Site "Chess.com"]
[Date "2020.06.19"]
[Round "5"]
[White "Donate Moreno, David"]
[Black "Mart�nez Carvajal, Juan Francisco"]
[Result "1-0"]
[WhiteElo "1502"]
[BlackElo "1754"]
[TimeControl "180+2"]
[EndTime "11:27:25 PDT"]
[Termination "Victoria de sylar48 por tiempo"]

1. e4 {[%clk 0:03:01.9]} 1... c5 {[%clk 0:03:00]} 2. Nf3 {[%clk 0:02:59.3]} 2...
Nc6 {[%clk 0:03:00.1]} 3. Bc4 {[%clk 0:02:58.5]} 3... e5 {[%clk 0:02:16.8]} 4.
d3 {[%clk 0:02:55.6]} 4... Be7 {[%clk 0:02:16.8]} 5. Be3 {[%clk 0:02:54.8]} 5...
d6 {[%clk 0:02:17.6]} 6. Nc3 {[%clk 0:02:54.3]} 6... Nf6 {[%clk 0:02:18.5]} 7.
O-O {[%clk 0:02:52.4]} 7... O-O {[%clk 0:02:19.4]} 8. Nd5 {[%clk 0:02:51.9]}
8... Bg4 {[%clk 0:02:04.9]} 9. h3 {[%clk 0:02:49.9]} 9... Bxf3 {[%clk
0:02:04.5]} 10. Qxf3 {[%clk 0:02:50]} 10... Nxd5 {[%clk 0:02:04.5]} 11. Bxd5
{[%clk 0:02:48.1]} 11... Qd7 {[%clk 0:01:59]} 12. Qg3 {[%clk 0:02:46.6]} 12...
Kh8 {[%clk 0:01:51.4]} 13. f4 {[%clk 0:02:42.2]} 13... f5 {[%clk 0:01:39.1]} 14.
Rf3 {[%clk 0:02:23.5]} 14... Nd4 {[%clk 0:01:32.5]} 15. Bxd4 {[%clk 0:02:23.7]}
15... cxd4 {[%clk 0:01:29.9]} 16. fxe5 {[%clk 0:02:21.6]} 16... dxe5 {[%clk
0:01:28.5]} 17. Qxe5 {[%clk 0:02:21.5]} 17... fxe4 {[%clk 0:01:10.5]} 18. Qxe4
{[%clk 0:02:06.3]} 18... Rxf3 {[%clk 0:01:02.2]} 19. Qxf3 {[%clk 0:02:06.4]}
19... Rf8 {[%clk 0:01:02.5]} 20. Qe4 {[%clk 0:02:05.7]} 20... Bf6 {[%clk
0:00:26.4]} 21. Rf1 {[%clk 0:01:53.2]} 21... Re8 {[%clk 0:00:26.4]} 22. Qf3
{[%clk 0:01:47.8]} 22... Re5 {[%clk 0:00:21.4]} 23. Bxb7 {[%clk 0:01:44.6]}
23... Qe7 {[%clk 0:00:20.2]} 24. Be4 {[%clk 0:01:40.4]} 24... Re6 {[%clk
0:00:16]} 25. Qf5 {[%clk 0:01:39.7]} 25... g6 {[%clk 0:00:15.3]} 26. Qb5 {[%clk
0:01:27.3]} 26... Rb6 {[%clk 0:00:11]} 27. Qd5 {[%clk 0:01:07.1]} 27... Rxb2
{[%clk 0:00:11.2]} 28. Qa8+ {[%clk 0:01:07.3]} 28... Kg7 {[%clk 0:00:11.5]} 29.
Bd5 {[%clk 0:01:05.9]} 29... Rxc2 {[%clk 0:00:09.9]} 30. Qg8+ {[%clk 0:01:06.1]}
30... Kh6 {[%clk 0:00:11]} 31. Bc4 {[%clk 0:00:47.3]} 31... Qe3+ {[%clk
0:00:10.9]} 32. Kh1 {[%clk 0:00:45.6]} 32... Qe2 {[%clk 0:00:07.7]} 33. Qf8+
{[%clk 0:00:45.6]} 33... Bg7 {[%clk 0:00:07.8]} 34. Qf4+ {[%clk 0:00:45.1]}
34... g5 {[%clk 0:00:08.6]} 35. Qd6+ {[%clk 0:00:44.4]} 35... Kh5 {[%clk
0:00:09.1]} 36. Bf7+ {[%clk 0:00:35.8]} 36... Kh4 {[%clk 0:00:05.8]} 37. Rg1
{[%clk 0:00:34]} 37... Be5 {[%clk 0:00:04.1]} 38. Qh6+ {[%clk 0:00:30.9]} 1

[Event "Open Nuevo Centro. Jornada 1"]
[Site "Chess.com"]
[Date "2020.06.19"]
[Round "5"]
[White "Macias Pino, Diego"]
[Black "Sanchez Saez, Francisco"]
[Result "0-1"]
[WhiteElo "2151"]
[BlackElo "2288"]
[TimeControl "180+2"]
[EndTime "11:27:30 PDT"]
[Termination "Victoria de Pacman1995 por jaque mate"]

1. e4 {[%clk 0:03:01.9]} 1... c5 {[%clk 0:02:52.9]} 2. Nc3 {[%clk 0:03:01.8]}
2... Nc6 {[%clk 0:02:49.2]} 3. Bb5 {[%clk 0:03:01.8]} 3... Nd4 {[%clk
0:02:46.9]} 4. Bc4 {[%clk 0:03:01.5]} 4... e6 {[%clk 0:02:48]} 5. Nge2 {[%clk
0:02:59.9]} 5... Nf6 {[%clk 0:02:32.7]} 6. O-O {[%clk 0:02:54.5]} 6... d5 {[%clk
0:02:29.9]} 7. exd5 {[%clk 0:02:54.7]} 7... exd5 {[%clk 0:02:30.4]} 8. Nxd5
{[%clk 0:02:54.1]} 8... Nxd5 {[%clk 0:02:23.5]} 9. Nxd4 {[%clk 0:02:54.3]} 9...
cxd4 {[%clk 0:02:23.9]} 10. Qh5 {[%clk 0:02:54.3]} 10... Be6 {[%clk 0:02:10.4]}
11. Re1 {[%clk 0:02:54.6]} 11... Nf4 {[%clk 0:02:03.4]} 12. Bb5+ {[%clk
0:02:53.4]} 12... Ke7 {[%clk 0:02:00.7]} 13. Qg5+ {[%clk 0:02:53.8]} 13... f6
{[%clk 0:01:58]} 14. Qxf4 {[%clk 0:02:54]} 14... Kf7 {[%clk 0:01:58.5]} 15. d3
{[%clk 0:02:21.6]} 15... Bd6 {[%clk 0:01:55.7]} 16. Qe4 {[%clk 0:02:17.2]} 16...
Qc8 {[%clk 0:01:30.1]} 17. Bf4 {[%clk 0:01:58.5]} 17... Bxf4 {[%clk 0:01:09.1]}
18. Qxf4 {[%clk 0:01:58.5]} 18... Qc5 {[%clk 0:01:08.5]} 19. Ba4 {[%clk
0:01:23.3]} 19... b5 {[%clk 0:00:57.2]} 20. Rxe6 {[%clk 0:00:59.8]} 20... Kxe6
{[%clk 0:00:47.6]} 21. Qe4+ {[%clk 0:00:56.8]} 21... Kd6 {[%clk 0:00:34.4]} 22.
Bb3 {[%clk 0:00:48.3]} 22... Rae8 {[%clk 0:00:31]} 23. Qg4 {[%clk 0:00:36.6]}
23... Re7 {[%clk 0:00:29.2]} 24. h4 {[%clk 0:00:31.2]} 24... Rhe8 {[%clk
0:00:29]} 25. Kh2 {[%clk 0:00:27.5]} 25... Re2 {[%clk 0:00:28.5]} 26. Qxg7
{[%clk 0:00:21.3]} 26... Qe5+ {[%clk 0:00:28.1]} 27. Kh3 {[%clk 0:00:18.1]}
27... Qf5+ {[%clk 0:00:24.3]} 28. Kh2 {[%clk 0:00:17.1]} 28... Qxf2 {[%clk
0:00:22.1]} 29. Qg4 {[%clk 0:00:18]} 29... f5 {[%clk 0:00:13.9]} 30. Qh3 {[%clk
0:00:18.7]} 30... Qf4+ {[%clk 0:00:13.5]} 31. Qg3 {[%clk 0:00:17.8]} 31... Qxg3+
{[%clk 0:00:12.9]} 32. Kxg3 {[%clk 0:00:19.4]} 32... R8e3+ {[%clk 0:00:13.1]}
33. Kh2 {[%clk 0:00:20]} 33... f4 {[%clk 0:00:13.7]} 34. Kg1 {[%clk 0:00:17.9]}
34... Rg3 {[%clk 0:00:13.5]} 35. Kh1 {[%clk 0:00:13.5]} 35... Rgxg2 {[%clk
0:00:14.2]} 36. Rd1 {[%clk 0:00:14.7]} 36... f3 {[%clk 0:00:14.9]} 37. Rf1
{[%clk 0:00:09.4]} 37... Rh2+ {[%clk 0:00:15.7]} 38. Kg1 {[%clk 0:00:10.4]}
38... Reg2# {[%clk 0:00:17.6]} 0

[Event "Open Nuevo Centro. Jornada 1"]
[Site "Chess.com"]
[Date "2020.06.19"]
[Round "5"]
[White "Chernikov, Vladimir"]
[Black "Hassomal Daswani, Birjkumar"]
[Result "1-0"]
[WhiteElo "2246"]
[BlackElo "1840"]
[TimeControl "180+2"]
[EndTime "11:27:30 PDT"]
[Termination "Victoria de isla88 por jaque mate"]

1. b3 {[%clk 0:03:01.9]} 1... e5 {[%clk 0:02:59]} 2. Bb2 {[%clk 0:03:03.8]} 2...
d6 {[%clk 0:02:59.7]} 3. e3 {[%clk 0:03:04.5]} 3... c6 {[%clk 0:03:00.7]} 4. d4
{[%clk 0:03:05.1]} 4... Nd7 {[%clk 0:03:00.3]} 5. g3 {[%clk 0:03:00.1]} 5... Qc7
{[%clk 0:03:00.8]} 6. Bg2 {[%clk 0:03:01]} 6... Be7 {[%clk 0:03:01.3]} 7. Ne2
{[%clk 0:03:01.8]} 7... Ngf6 {[%clk 0:03:00.9]} 8. c4 {[%clk 0:03:02.4]} 8...
O-O {[%clk 0:03:00.5]} 9. Nbc3 {[%clk 0:03:03.4]} 9... Re8 {[%clk 0:02:59.3]}
10. O-O {[%clk 0:03:03.7]} 10... Nf8 {[%clk 0:02:58.3]} 11. Rc1 {[%clk
0:03:04.3]} 11... Bg4 {[%clk 0:02:55.3]} 12. h3 {[%clk 0:03:04.1]} 12... Bh5
{[%clk 0:02:49.8]} 13. g4 {[%clk 0:03:02.5]} 13... Bg6 {[%clk 0:02:49.7]} 14. f4
{[%clk 0:03:03.5]} 14... h5 {[%clk 0:02:31.5]} 15. f5 {[%clk 0:02:47.1]} 15...
Bh7 {[%clk 0:02:29.2]} 16. g5 {[%clk 0:02:42.4]} 16... N6d7 {[%clk 0:02:28.3]}
17. h4 {[%clk 0:02:43]} 17... Rad8 {[%clk 0:02:17.2]} 18. Ng3 {[%clk 0:02:41]}
18... exd4 {[%clk 0:02:08.4]} 19. exd4 {[%clk 0:02:32.6]} 19... d5 {[%clk
0:02:08.4]} 20. Nxh5 {[%clk 0:02:33.5]} 20... g6 {[%clk 0:02:04.6]} 21. Nf4
{[%clk 0:02:24.6]} 21... gxf5 {[%clk 0:01:58]} 22. cxd5 {[%clk 0:02:25.4]} 22...
Qa5 {[%clk 0:01:49.3]} 23. dxc6 {[%clk 0:02:12.2]} 23... bxc6 {[%clk 0:01:48.5]}
24. d5 {[%clk 0:01:56.3]} 24... Bc5+ {[%clk 0:01:43.2]} 25. Kh1 {[%clk
0:01:54.9]} 25... Ne5 {[%clk 0:01:32.4]} 26. Nh5 {[%clk 0:01:42.1]} 26... Ng4
{[%clk 0:01:20.5]} 27. Nf6+ {[%clk 0:01:41.8]} 27... Nxf6 {[%clk 0:01:10.3]} 28.
gxf6 {[%clk 0:01:43.7]} 28... Be3 {[%clk 0:01:03.8]} 29. Rc2 {[%clk 0:01:28.5]}
29... Qb4 {[%clk 0:01:02]} 30. Bf3 {[%clk 0:00:53.5]} 30... Qxh4+ {[%clk
0:00:59.7]} 31. Rh2 {[%clk 0:00:53.7]} 31... Qd4 {[%clk 0:00:36.9]} 32. Qxd4
{[%clk 0:00:44.8]} 32... Bxd4 {[%clk 0:00:36.7]} 33. dxc6 {[%clk 0:00:46]} 33...
Bg6 {[%clk 0:00:27.2]} 34. Nd5 {[%clk 0:00:45]} 34... Rxd5 {[%clk 0:00:14.1]}
35. Bxd5 {[%clk 0:00:46.9]} 35... Nh7 {[%clk 0:00:14.4]} 36. Bxd4 {[%clk
0:00:46.8]} 36... Rd8 {[%clk 0:00:13.7]} 37. c7 {[%clk 0:00:45.8]} 37... Rc8
{[%clk 0:00:14.2]} 38. Re1 {[%clk 0:00:46.7]} 38... Rxc7 {[%clk 0:00:13.3]} 39.
Re8+ {[%clk 0:00:47.5]} 39... Nf8 {[%clk 0:00:11.9]} 40. Rxf8+ {[%clk
0:00:48.5]} 40... Kxf8 {[%clk 0:00:10.2]} 41. Rh8# {[%clk 0:00:50.4]} 1

[Event "Open Nuevo Centro. Jornada 1"]
[Site "Chess.com"]
[Date "2020.06.19"]
[Round "5"]
[White "Aguado, Pablo Luis"]
[Black "Birnoveanu, Petru"]
[Result "1-0"]
[WhiteElo "1475"]
[BlackElo "1553"]
[TimeControl "180+2"]
[EndTime "11:27:31 PDT"]
[Termination "Victoria de PLAD_2006 por tiempo"]

1. d4 {[%clk 0:03:01.9]} 1... g6 {[%clk 0:02:59.8]} 2. c4 {[%clk 0:02:56.5]}
2... Bg7 {[%clk 0:03:00]} 3. Nc3 {[%clk 0:02:55.2]} 3... c5 {[%clk 0:03:00.4]}
4. d5 {[%clk 0:02:55.9]} 4... d6 {[%clk 0:03:00.6]} 5. e4 {[%clk 0:02:56.2]}
5... f5 {[%clk 0:03:01.2]} 6. Bd3 {[%clk 0:02:53.2]} 6... fxe4 {[%clk
0:03:00.7]} 7. Nxe4 {[%clk 0:02:53.1]} 7... Nf6 {[%clk 0:03:02.6]} 8. Nc3 {[%clk
0:02:51.2]} 8... a6 {[%clk 0:03:02.2]} 9. a4 {[%clk 0:02:50.6]} 9... O-O {[%clk
0:03:00.3]} 10. Nf3 {[%clk 0:02:49.5]} 10... Bg4 {[%clk 0:03:00.3]} 11. O-O
{[%clk 0:02:49.7]} 11... Nbd7 {[%clk 0:03:00.7]} 12. Be2 {[%clk 0:02:45.4]}
12... Bxf3 {[%clk 0:02:59.6]} 13. Bxf3 {[%clk 0:02:45.1]} 13... Ne5 {[%clk
0:03:00.6]} 14. Be2 {[%clk 0:02:40.7]} 14... Rb8 {[%clk 0:02:50.5]} 15. Bf4
{[%clk 0:02:31]} 15... Nfd7 {[%clk 0:02:49.2]} 16. Bg3 {[%clk 0:02:27.1]} 16...
Qe8 {[%clk 0:02:39.6]} 17. Qd2 {[%clk 0:02:22.6]} 17... Rf5 {[%clk 0:02:18.8]}
18. Ne4 {[%clk 0:02:07.5]} 18... Nf6 {[%clk 0:02:06.8]} 19. f3 {[%clk
0:01:35.5]} 19... Ned7 {[%clk 0:01:55.8]} 20. Bd3 {[%clk 0:01:29.8]} 20... Nxe4
{[%clk 0:01:53.7]} 21. fxe4 {[%clk 0:01:21]} 21... Rxf1+ {[%clk 0:01:52.4]} 22.
Rxf1 {[%clk 0:01:20.9]} 22... Bd4+ {[%clk 0:01:51.2]} 23. Kh1 {[%clk 0:01:21]}
23... Be5 {[%clk 0:01:51.3]} 24. Qg5 {[%clk 0:01:10.1]} 24... Bxg3 {[%clk
0:01:49.4]} 25. Qxg3 {[%clk 0:01:10.2]} 25... Ne5 {[%clk 0:01:49.7]} 26. Be2
{[%clk 0:01:08]} 26... b5 {[%clk 0:01:45.3]} 27. axb5 {[%clk 0:01:04.8]} 27...
axb5 {[%clk 0:01:45.2]} 28. cxb5 {[%clk 0:01:06.2]} 28... e6 {[%clk 0:01:36.2]}
29. Qb3 {[%clk 0:00:51.3]} 29... c4 {[%clk 0:00:52.8]} 30. Bxc4 {[%clk
0:00:49.8]} 30... Nxc4 {[%clk 0:00:52.7]} 31. Qxc4 {[%clk 0:00:50.7]} 31... Qxb5
{[%clk 0:00:53.5]} 32. Qc1 {[%clk 0:00:21.8]} 32... exd5 {[%clk 0:00:51.5]} 33.
Qf4 {[%clk 0:00:19.1]} 33... Qb7 {[%clk 0:00:10.9]} 34. Qxd6 {[%clk 0:00:11.4]}
34... dxe4 {[%clk 0:00:08.8]} 35. Qe6+ {[%clk 0:00:12.3]} 35... Kg7 {[%clk
0:00:07.6]} 36. Qe5+ {[%clk 0:00:12.9]} 1

[Event "Open Nuevo Centro. Jornada 1"]
[Site "Chess.com"]
[Date "2020.06.19"]
[Round "5"]
[White "Lloret Ramis, Juan Jos�"]
[Black "Castellano L�pez, Javier"]
[Result "1/2-1/2"]
[WhiteElo "1972"]
[BlackElo "1763"]
[TimeControl "180+2"]
[EndTime "11:27:41 PDT"]
[Termination "Tablas por repetición de movimientos"]

1. c4 {[%clk 0:03:01.9]} 1... Nf6 {[%clk 0:03:00.1]} 2. Nc3 {[%clk 0:03:01.7]}
2... e6 {[%clk 0:02:59.6]} 3. e4 {[%clk 0:03:02.8]} 3... e5 {[%clk 0:02:56]} 4.
Nf3 {[%clk 0:02:56.7]} 4... Nc6 {[%clk 0:02:55.5]} 5. d4 {[%clk 0:02:52.4]} 5...
exd4 {[%clk 0:02:54.4]} 6. Nxd4 {[%clk 0:02:53.8]} 6... Bc5 {[%clk 0:02:55.5]}
7. Be3 {[%clk 0:02:48.6]} 7... Qe7 {[%clk 0:02:49.5]} 8. f3 {[%clk 0:02:47.4]}
8... Nxd4 {[%clk 0:02:47]} 9. Bxd4 {[%clk 0:02:47.6]} 9... Bxd4 {[%clk
0:02:46.7]} 10. Qxd4 {[%clk 0:02:48.5]} 10... d6 {[%clk 0:02:48]} 11. Be2 {[%clk
0:02:41.4]} 11... Qe5 {[%clk 0:02:39.7]} 12. Qxe5+ {[%clk 0:02:32.5]} 12... dxe5
{[%clk 0:02:40.4]} 13. Nb5 {[%clk 0:02:33.3]} 13... Kd7 {[%clk 0:02:17.3]} 14.
O-O-O+ {[%clk 0:02:22.2]} 14... Kc6 {[%clk 0:02:16.6]} 15. g4 {[%clk 0:02:11.1]}
15... Be6 {[%clk 0:02:11.4]} 16. Rd2 {[%clk 0:02:06]} 16... a6 {[%clk
0:02:08.7]} 17. Nc3 {[%clk 0:02:06.1]} 17... Rhd8 {[%clk 0:02:08.5]} 18. Nd5
{[%clk 0:02:07.1]} 18... Bxd5 {[%clk 0:02:05.1]} 19. cxd5+ {[%clk 0:02:07.1]}
19... Kd6 {[%clk 0:02:05.8]} 20. Kb1 {[%clk 0:02:04.1]} 20... c6 {[%clk
0:01:52.7]} 21. dxc6+ {[%clk 0:01:58]} 21... Kxc6 {[%clk 0:01:54.6]} 22. Rc1+
{[%clk 0:01:58.9]} 22... Kb6 {[%clk 0:01:53.3]} 23. Rcd1 {[%clk 0:02:00]} 23...
Rxd2 {[%clk 0:01:50.5]} 24. Rxd2 {[%clk 0:02:00.5]} 24... Kc7 {[%clk 0:01:49.2]}
25. g5 {[%clk 0:01:47.6]} 25... Nd7 {[%clk 0:01:48.8]} 26. Bc4 {[%clk 0:01:41]}
26... f6 {[%clk 0:01:44.9]} 27. gxf6 {[%clk 0:01:31.1]} 27... gxf6 {[%clk
0:01:44.1]} 28. Rg2 {[%clk 0:01:30.8]} 28... b5 {[%clk 0:01:06.2]} 29. Bd5
{[%clk 0:01:24.9]} 29... Rh8 {[%clk 0:01:03.6]} 30. Rg7 {[%clk 0:01:13.2]} 30...
Kd6 {[%clk 0:00:58.3]} 31. Rf7 {[%clk 0:01:13.6]} 31... h5 {[%clk 0:00:50.7]}
32. h4 {[%clk 0:01:08.7]} 32... Rh6 {[%clk 0:00:44.5]} 33. Bb7 {[%clk
0:01:00.8]} 33... a5 {[%clk 0:00:43.7]} 34. Ba6 {[%clk 0:00:56.2]} 34... b4
{[%clk 0:00:44.4]} 35. Bb5 {[%clk 0:00:53.8]} 35... Nc5 {[%clk 0:00:32.2]} 36.
Be8 {[%clk 0:00:50.1]} 36... Rh8 {[%clk 0:00:18.8]} 37. Bb5 {[%clk 0:00:46.6]}
37... Rh6 {[%clk 0:00:19.3]} 38. Ra7 {[%clk 0:00:45.2]} 38... Rg6 {[%clk
0:00:19.2]} 39. Rh7 {[%clk 0:00:33.1]} 39... Rg1+ {[%clk 0:00:19.3]} 40. Kc2
{[%clk 0:00:34.5]} 40... Rg2+ {[%clk 0:00:20.6]} 41. Kc1 {[%clk 0:00:35]} 41...
Rg1+ {[%clk 0:00:21.6]} 42. Kd2 {[%clk 0:00:33.7]} 42... Rg2+ {[%clk 0:00:22.8]}
43. Kc1 {[%clk 0:00:20]} 43... Rg1+ {[%clk 0:00:22.6]} 44. Kd2 {[%clk
0:00:18.8]} 44... Rg2+ {[%clk 0:00:23.7]} 45. Kc1 {[%clk 0:00:15.1]} 1/2-1